[Event "December 5 Late 2023"]
[Site "https://www.chess.com"]
[Date "2023.12.05"]
[Round "5"]
[White "Golubenko, Valentina"]
[Black "Gutierrez Olivares, Daniel"]
[Result "1-0"]
[Board "125"]
[TimeControl "180+1"]
[WhiteFideId "4501993"]
[BlackFideId "2264005"]
[WhiteElo "2230"]
[BlackElo "2500"]
[WhiteTeam "CRO"]
[BlackTeam "ESP"]
[WhiteClock "0:00:08"]
[BlackClock "0:00:01"]

1. e4 {[%clk 0:03:00]}  e6 {[%clk 0:02:59]} 2. Nf3 {[%clk 0:03:00]}  d5 {[%clk 0:03:00]} 3. exd5 {[%clk 0:02:58]}  exd5 {[%clk 0:03:00]} 4. d4 {[%clk 0:02:59]}  Nc6 {[%clk 0:03:00]} 5. Bd3 {[%clk 0:02:58]}  Nge7 {[%clk 0:03:00]} 6. O-O {[%clk 0:02:58]}  Bg4 {[%clk 0:03:01]} 7. c3 {[%clk 0:02:54]}  f6 {[%clk 0:03:00]} 8. h3 {[%clk 0:02:54]}  Bh5 {[%clk 0:02:59]} 9. Nbd2 {[%clk 0:02:54]}  Qd7 {[%clk 0:02:57]} 10. Qc2 {[%clk 0:02:54]}  g5 {[%clk 0:02:56]} 11. c4 {[%clk 0:02:48]}  Nb4 {[%clk 0:02:53]} 12. Qb1 {[%clk 0:02:44]}  g4 {[%clk 0:02:43]} 13. hxg4 {[%clk 0:02:42]}  Qxg4 {[%clk 0:02:42]} 14. Bxh7 {[%clk 0:01:51]}  f5 {[%clk 0:02:19]} 15. Ne5 {[%clk 0:01:49]}  Qh4 {[%clk 0:02:10]} 16. Bxf5 {[%clk 0:00:51]}  Bg4 {[%clk 0:01:57]} 17. Bg6+ {[%clk 0:00:50]}  Kd8 {[%clk 0:01:53]} 18. Nf7+ {[%clk 0:00:50]}  Kd7 {[%clk 0:01:48]} 19. Nxh8 {[%clk 0:00:40]}  Qxh8 {[%clk 0:01:42]} 20. a3 {[%clk 0:00:34]}  Nbc6 {[%clk 0:01:41]} 21. cxd5 {[%clk 0:00:34]}  Nxd4 {[%clk 0:01:41]} 22. f3 {[%clk 0:00:19]}  Bf5 {[%clk 0:01:33]} 23. Bxf5+ {[%clk 0:00:18]}  Nexf5 {[%clk 0:01:34]} 24. Ne4 {[%clk 0:00:16]}  Be7 {[%clk 0:01:19]} 25. Qd3 {[%clk 0:00:16]}  Qh4 {[%clk 0:01:13]} 26. Be3 {[%clk 0:00:13]}  Nxe3 {[%clk 0:00:36]} 27. Qxe3 {[%clk 0:00:12]}  Nf5 {[%clk 0:00:27]} 28. Qf2 {[%clk 0:00:11]}  Qh7 {[%clk 0:00:21]} 29. Nc5+ {[%clk 0:00:10]}  Kc8 {[%clk 0:00:16]} 30. Ne6 {[%clk 0:00:09]}  b6 {[%clk 0:00:15]} 31. Qc2 {[%clk 0:00:09]}  Kb7 {[%clk 0:00:14]} 32. Qxc7+ {[%clk 0:00:08]}  Ka6 {[%clk 0:00:14]} 33. Qc4+ {[%clk 0:00:08]}  Kb7 {[%clk 0:00:13]} 34. Qc6+ {[%clk 0:00:08]}  Ka6 {[%clk 0:00:10]} 35. Qc4+ {[%clk 0:00:09]}  Kb7 {[%clk 0:00:02]} 36. Qc6+ {[%clk 0:00:09]}  Kb8 {[%clk 0:00:01]} 37. Qc7# {[%clk 0:00:08]} 1-0

[Event "December 5 Late 2023"]
[Site "https://www.chess.com"]
[Date "2023.12.05"]
[Round "5"]
[White "NovakRatko"]
[Black "Einarsson, Halldor Gretar"]
[Result "1-0"]
[Board "127"]
[TimeControl "180+1"]
[BlackFideId "2300150"]
[WhiteElo "2469"]
[BlackElo "2215"]
[BlackTeam "ISL"]
[WhiteClock "0:00:35"]
[BlackClock "0:00:00"]

1. d4 {[%clk 0:03:00]}  Nf6 {[%clk 0:02:59]} 2. c4 {[%clk 0:02:59]}  g6 {[%clk 0:02:59]} 3. Nc3 {[%clk 0:02:59]}  d5 {[%clk 0:02:59]} 4. f3 {[%clk 0:02:59]}  Bg7 {[%clk 0:02:51]} 5. e4 {[%clk 0:02:58]}  dxe4 {[%clk 0:02:49]} 6. fxe4 {[%clk 0:02:59]}  e5 {[%clk 0:02:44]} 7. d5 {[%clk 0:02:59]}  O-O {[%clk 0:02:32]} 8. Be2 {[%clk 0:02:59]}  c6 {[%clk 0:02:20]} 9. Bg5 {[%clk 0:02:58]}  Qa5 {[%clk 0:02:14]} 10. Qd2 {[%clk 0:02:57]}  cxd5 {[%clk 0:02:07]} 11. Bxf6 {[%clk 0:02:45]}  Bxf6 {[%clk 0:02:06]} 12. Nxd5 {[%clk 0:02:45]}  Qxd2+ {[%clk 0:02:05]} 13. Kxd2 {[%clk 0:02:45]}  Bg5+ {[%clk 0:02:05]} 14. Kc3 {[%clk 0:02:39]}  Nc6 {[%clk 0:01:59]} 15. Nf3 {[%clk 0:02:38]}  Bd8 {[%clk 0:01:51]} 16. b4 {[%clk 0:02:37]}  Be6 {[%clk 0:01:25]} 17. b5 {[%clk 0:02:23]}  Ba5+ {[%clk 0:01:21]} 18. Kb2 {[%clk 0:02:22]}  Bxd5 {[%clk 0:01:08]} 19. exd5 {[%clk 0:02:18]}  Nd4 {[%clk 0:01:07]} 20. Nxd4 {[%clk 0:02:18]}  exd4 {[%clk 0:01:07]} 21. Rad1 {[%clk 0:02:18]}  Rfe8 {[%clk 0:00:59]} 22. Bf3 {[%clk 0:02:11]}  Bc3+ {[%clk 0:00:56]} 23. Kb1 {[%clk 0:02:00]}  Rac8 {[%clk 0:00:52]} 24. d6 {[%clk 0:02:00]}  Rxc4 {[%clk 0:00:49]} 25. a3 {[%clk 0:01:21]}  Re5 {[%clk 0:00:18]} 26. d7 {[%clk 0:01:13]}  Rxb5+ {[%clk 0:00:13]} 27. Kc2 {[%clk 0:01:13]}  Ba5+ {[%clk 0:00:13]} 28. Kd3 {[%clk 0:01:13]}  Rc3+ {[%clk 0:00:11]} 29. Kxd4 {[%clk 0:01:11]}  Rbc5 {[%clk 0:00:11]} 30. Bd5 {[%clk 0:00:58]}  Kg7 {[%clk 0:00:04]} 31. Rhe1 {[%clk 0:00:56]}  Bd8 {[%clk 0:00:04]} 32. Re8 {[%clk 0:00:56]}  Bf6+ {[%clk 0:00:04]} 33. Ke4 {[%clk 0:00:55]}  Ra5 {[%clk 0:00:00]} 34. Rb1 {[%clk 0:00:35]} 1-0

[Event "December 5 Late 2023"]
[Site "https://www.chess.com"]
[Date "2023.12.05"]
[Round "5"]
[White "Duncan, Chris R"]
[Black "Mizzi, Jack"]
[Result "0-1"]
[Board "128"]
[TimeControl "180+1"]
[WhiteFideId "403091"]
[BlackFideId "5602521"]
[WhiteElo "2211"]
[BlackElo "2451"]
[WhiteTeam "ENG"]
[BlackTeam "MLT"]
[WhiteClock "0:00:40"]
[BlackClock "0:00:07"]

1. d4 {[%clk 0:03:00]}  Nf6 {[%clk 0:02:58]} 2. c4 {[%clk 0:02:59]}  e6 {[%clk 0:02:57]} 3. Nc3 {[%clk 0:02:58]}  d5 {[%clk 0:02:56]} 4. cxd5 {[%clk 0:02:41]}  exd5 {[%clk 0:02:57]} 5. Bg5 {[%clk 0:02:42]}  Be7 {[%clk 0:02:56]} 6. e3 {[%clk 0:02:41]}  c6 {[%clk 0:02:52]} 7. Bd3 {[%clk 0:02:41]}  h6 {[%clk 0:02:48]} 8. Bh4 {[%clk 0:02:41]}  Ne4 {[%clk 0:02:48]} 9. Bxe7 {[%clk 0:02:39]}  Qxe7 {[%clk 0:02:47]} 10. Nge2 {[%clk 0:02:40]}  O-O {[%clk 0:02:46]} 11. O-O {[%clk 0:02:40]}  f5 {[%clk 0:02:42]} 12. Qc2 {[%clk 0:02:39]}  a5 {[%clk 0:02:35]} 13. Rae1 {[%clk 0:02:40]}  Na6 {[%clk 0:02:35]} 14. Ng3 {[%clk 0:02:40]}  Nb4 {[%clk 0:02:33]} 15. Qb1 {[%clk 0:02:40]}  Nxd3 {[%clk 0:02:32]} 16. Qxd3 {[%clk 0:02:41]}  b6 {[%clk 0:02:31]} 17. f3 {[%clk 0:02:31]}  Nxg3 {[%clk 0:02:30]} 18. hxg3 {[%clk 0:02:31]}  Ba6 {[%clk 0:02:30]} 19. Qd2 {[%clk 0:02:20]}  Bxf1 {[%clk 0:02:28]} 20. Kxf1 {[%clk 0:02:20]}  Rae8 {[%clk 0:02:24]} 21. Kf2 {[%clk 0:02:20]}  Rf6 {[%clk 0:02:24]} 22. Ne2 {[%clk 0:02:18]}  g5 {[%clk 0:02:21]} 23. Nc1 {[%clk 0:02:15]}  Re6 {[%clk 0:02:21]} 24. Nd3 {[%clk 0:02:14]}  c5 {[%clk 0:02:14]} 25. Ne5 {[%clk 0:02:08]}  Rxe5 {[%clk 0:02:12]} 26. dxe5 {[%clk 0:02:08]}  Qxe5 {[%clk 0:02:13]} 27. Rd1 {[%clk 0:02:03]}  Kg7 {[%clk 0:02:09]} 28. Qxd5 {[%clk 0:01:58]}  Qxe3+ {[%clk 0:02:08]} 29. Kf1 {[%clk 0:01:57]}  Re7 {[%clk 0:01:47]} 30. Qd6 {[%clk 0:01:48]}  Qe5 {[%clk 0:01:42]} 31. Qxe5+ {[%clk 0:01:34]}  Rxe5 {[%clk 0:01:40]} 32. Rd6 {[%clk 0:01:35]}  b5 {[%clk 0:01:39]} 33. a4 {[%clk 0:01:19]}  b4 {[%clk 0:01:10]} 34. Ra6 {[%clk 0:01:19]}  c4 {[%clk 0:01:10]} 35. Rc6 {[%clk 0:01:19]}  Re3 {[%clk 0:00:16]} 36. Rxc4 {[%clk 0:01:16]}  Rb3 {[%clk 0:00:16]} 37. Rc5 {[%clk 0:01:16]}  Rxb2 {[%clk 0:00:16]} 38. Rxf5 {[%clk 0:01:08]}  Ra2 {[%clk 0:00:13]} 39. Rxa5 {[%clk 0:00:37]}  b3 {[%clk 0:00:12]} 40. Rb5 {[%clk 0:00:38]}  b2 {[%clk 0:00:11]} 41. a5 {[%clk 0:00:31]}  Ra1+ {[%clk 0:00:10]} 42. Kf2 {[%clk 0:00:31]}  b1=Q {[%clk 0:00:10]} 43. Rxb1 {[%clk 0:00:30]}  Rxb1 {[%clk 0:00:11]} 44. Ke3 {[%clk 0:00:30]}  Ra1 {[%clk 0:00:12]} 45. a6 {[%clk 0:00:28]}  Rxa6 {[%clk 0:00:13]} 46. g4 {[%clk 0:00:27]}  Kf6 {[%clk 0:00:12]} 47. Kf2 {[%clk 0:00:28]}  Ra2+ {[%clk 0:00:12]} 48. Kg3 {[%clk 0:00:28]}  Ke5 {[%clk 0:00:12]} 49. Kh3 {[%clk 0:00:29]}  Kf4 {[%clk 0:00:12]} 50. Kh2 {[%clk 0:00:29]}  Ra3 {[%clk 0:00:08]} 51. Kh3 {[%clk 0:00:29]}  Rxf3+ {[%clk 0:00:08]} 52. gxf3 {[%clk 0:00:28]}  Kxf3 {[%clk 0:00:09]} 53. Kh2 {[%clk 0:00:28]}  Kxg4 {[%clk 0:00:10]} 54. Kg2 {[%clk 0:00:29]}  h5 {[%clk 0:00:09]} 55. Kh2 {[%clk 0:00:30]}  h4 {[%clk 0:00:10]} 56. Kg2 {[%clk 0:00:31]}  h3+ {[%clk 0:00:10]} 57. Kh2 {[%clk 0:00:32]}  Kh4 {[%clk 0:00:10]} 58. Kg1 {[%clk 0:00:32]}  g4 {[%clk 0:00:09]} 59. Kh2 {[%clk 0:00:33]}  g3+ {[%clk 0:00:09]} 60. Kh1 {[%clk 0:00:34]}  Kg4 {[%clk 0:00:10]} 61. Kg1 {[%clk 0:00:35]}  Kf3 {[%clk 0:00:10]} 62. Kh1 {[%clk 0:00:36]}  g2+ {[%clk 0:00:10]} 63. Kg1 {[%clk 0:00:37]}  h2+ {[%clk 0:00:06]} 64. Kxh2 {[%clk 0:00:37]}  Kf2 {[%clk 0:00:07]} 65. Kh3 {[%clk 0:00:38]}  g1=R {[%clk 0:00:06]} 66. Kh4 {[%clk 0:00:39]}  Kf3 {[%clk 0:00:06]} 67. Kh5 {[%clk 0:00:40]}  Kf4 {[%clk 0:00:07]} 68. Kh6 {[%clk 0:00:40]}  Kf5 {[%clk 0:00:07]} 69. Kh5 {[%clk 0:00:40]}  Rh1# {[%clk 0:00:07]} 0-1

[Event "December 5 Late 2023"]
[Site "https://www.chess.com"]
[Date "2023.12.05"]
[Round "5"]
[White "Blanco Diez, David"]
[Black "Curtis, John"]
[Result "0-1"]
[Board "130"]
[TimeControl "180+1"]
[WhiteFideId "32032927"]
[BlackFideId "3200256"]
[WhiteElo "2407"]
[BlackElo "2208"]
[WhiteTeam "ESP"]
[BlackTeam "AUS"]
[WhiteClock "0:00:10"]
[BlackClock "0:00:47"]

1. e4 {[%clk 0:03:00]}  c6 {[%clk 0:02:59]} 2. Nc3 {[%clk 0:02:59]}  d5 {[%clk 0:03:00]} 3. d3 {[%clk 0:02:56]}  e5 {[%clk 0:02:57]} 4. g3 {[%clk 0:02:52]}  d4 {[%clk 0:02:51]} 5. Nce2 {[%clk 0:02:52]}  Bb4+ {[%clk 0:02:45]} 6. Bd2 {[%clk 0:02:49]}  Bxd2+ {[%clk 0:02:45]} 7. Qxd2 {[%clk 0:02:50]}  c5 {[%clk 0:02:40]} 8. h4 {[%clk 0:02:42]}  Nc6 {[%clk 0:02:31]} 9. Bh3 {[%clk 0:02:39]}  Bxh3 {[%clk 0:02:22]} 10. Nxh3 {[%clk 0:02:40]}  Nf6 {[%clk 0:02:19]} 11. f3 {[%clk 0:02:15]}  Qa5 {[%clk 0:02:17]} 12. Qxa5 {[%clk 0:02:10]}  Nxa5 {[%clk 0:02:17]} 13. Kd2 {[%clk 0:01:55]}  Nd7 {[%clk 0:02:01]} 14. f4 {[%clk 0:01:42]}  f6 {[%clk 0:01:59]} 15. c3 {[%clk 0:01:25]}  Ke7 {[%clk 0:01:53]} 16. cxd4 {[%clk 0:01:23]}  cxd4 {[%clk 0:01:53]} 17. Rhc1 {[%clk 0:01:16]}  Rhc8 {[%clk 0:01:50]} 18. Neg1 {[%clk 0:01:00]}  b5 {[%clk 0:01:31]} 19. Nf3 {[%clk 0:00:54]}  h5 {[%clk 0:01:07]} 20. fxe5 {[%clk 0:00:35]}  fxe5 {[%clk 0:01:07]} 21. Nhg5 {[%clk 0:00:34]}  b4 {[%clk 0:01:00]} 22. Rxc8 {[%clk 0:00:30]}  Rxc8 {[%clk 0:00:59]} 23. Rf1 {[%clk 0:00:28]}  b3 {[%clk 0:00:58]} 24. a3 {[%clk 0:00:28]}  Rc2+ {[%clk 0:00:57]} 25. Kd1 {[%clk 0:00:26]}  Rxb2 {[%clk 0:00:57]} 26. Nd2 {[%clk 0:00:26]}  Ra2 {[%clk 0:00:56]} 27. Rf7+ {[%clk 0:00:23]}  Kd6 {[%clk 0:00:55]} 28. Rxg7 {[%clk 0:00:20]}  Ra1+ {[%clk 0:00:56]} 29. Ke2 {[%clk 0:00:20]}  b2 {[%clk 0:00:55]} 30. Nf7+ {[%clk 0:00:20]}  Kc6 {[%clk 0:00:53]} 31. Rg6+ {[%clk 0:00:19]}  Kc7 {[%clk 0:00:52]} 32. Ra6 {[%clk 0:00:19]}  Nb3 {[%clk 0:00:47]} 33. Nxb3 {[%clk 0:00:11]}  Re1+ {[%clk 0:00:47]} 34. Kxe1 {[%clk 0:00:10]}  b1=Q+ {[%clk 0:00:47]} 35. Kf2 {[%clk 0:00:10]}  Qxb3 {[%clk 0:00:48]} 36. Rxa7+ {[%clk 0:00:11]}  Kb6 {[%clk 0:00:48]} 37. Rxd7 {[%clk 0:00:10]}  Qxd3 {[%clk 0:00:47]} 38. Nxe5 {[%clk 0:00:10]}  Qe3+ {[%clk 0:00:47]} 39. Kg2 {[%clk 0:00:09]}  Qxe4+ {[%clk 0:00:48]} 40. Nf3 {[%clk 0:00:10]}  Qe2+ {[%clk 0:00:48]} 41. Kh3 {[%clk 0:00:09]}  Qxf3 {[%clk 0:00:48]} 42. Rxd4 {[%clk 0:00:10]}  Qh1# {[%clk 0:00:47]} 0-1

[Event "December 5 Late 2023"]
[Site "https://www.chess.com"]
[Date "2023.12.05"]
[Round "5"]
[White "Joubert, Dantelle"]
[Black "Marchesich, Giovanni"]
[Result "0-1"]
[Board "133"]
[TimeControl "180+1"]
[WhiteFideId "14310813"]
[BlackFideId "2824790"]
[WhiteElo "2155"]
[BlackElo "2397"]
[WhiteTeam "RSA"]
[BlackTeam "ITA"]
[WhiteClock "0:00:00"]
[BlackClock "0:01:42"]

1. d4 {[%clk 0:03:00]}  Nf6 {[%clk 0:02:59]} 2. c4 {[%clk 0:03:00]}  c5 {[%clk 0:02:59]} 3. d5 {[%clk 0:02:59]}  b5 {[%clk 0:02:59]} 4. Qc2 {[%clk 0:02:59]}  b4 {[%clk 0:02:49]} 5. e4 {[%clk 0:02:57]}  d6 {[%clk 0:02:49]} 6. a3 {[%clk 0:02:46]}  a5 {[%clk 0:02:44]} 7. axb4 {[%clk 0:02:45]}  cxb4 {[%clk 0:02:45]} 8. c5 {[%clk 0:02:32]}  dxc5 {[%clk 0:02:43]} 9. Bg5 {[%clk 0:02:22]}  Nbd7 {[%clk 0:02:39]} 10. Bb5 {[%clk 0:02:16]}  Qb6 {[%clk 0:02:37]} 11. Bc6 {[%clk 0:02:12]}  Bb7 {[%clk 0:02:33]} 12. Bxf6 {[%clk 0:01:48]}  Bxc6 {[%clk 0:02:32]} 13. dxc6 {[%clk 0:01:45]}  Nxf6 {[%clk 0:02:28]} 14. Nf3 {[%clk 0:01:38]}  e6 {[%clk 0:02:23]} 15. O-O {[%clk 0:01:28]}  Be7 {[%clk 0:02:21]} 16. Ne5 {[%clk 0:01:23]}  O-O {[%clk 0:02:20]} 17. Nd2 {[%clk 0:01:23]}  Rfd8 {[%clk 0:02:19]} 18. Ndc4 {[%clk 0:01:22]}  Qc7 {[%clk 0:02:18]} 19. f4 {[%clk 0:01:09]}  Bd6 {[%clk 0:02:15]} 20. Rad1 {[%clk 0:00:54]}  Bxe5 {[%clk 0:02:13]} 21. fxe5 {[%clk 0:00:51]}  Ng4 {[%clk 0:02:08]} 22. Nd6 {[%clk 0:00:40]}  Nxe5 {[%clk 0:02:04]} 23. Qxc5 {[%clk 0:00:40]}  f6 {[%clk 0:01:58]} 24. Nb7 {[%clk 0:00:13]}  Rxd1 {[%clk 0:01:51]} 25. Rxd1 {[%clk 0:00:00]}  Nxc6 {[%clk 0:01:42]} 0-1

[Event "December 5 Late 2023"]
[Site "https://www.chess.com"]
[Date "2023.12.05"]
[Round "5"]
[White "Estevez Polanco, Leonardo Rafael"]
[Black "Melikhov, Evgeny V."]
[Result "1-0"]
[Board "134"]
[TimeControl "180+1"]
[WhiteFideId "6402798"]
[BlackFideId "4122046"]
[WhiteElo "2149"]
[BlackElo "2387"]
[WhiteTeam "DOM"]
[BlackTeam "GRE"]
[WhiteClock "0:00:49"]
[BlackClock "0:00:00"]

1. e4 {[%clk 0:03:00]}  c5 {[%clk 0:02:58]} 2. Nf3 {[%clk 0:03:00]}  d6 {[%clk 0:02:58]} 3. d4 {[%clk 0:03:01]}  cxd4 {[%clk 0:02:58]} 4. c3 {[%clk 0:03:02]}  d3 {[%clk 0:02:58]} 5. Bxd3 {[%clk 0:03:02]}  Nc6 {[%clk 0:02:57]} 6. O-O {[%clk 0:03:02]}  Nf6 {[%clk 0:02:57]} 7. Qe2 {[%clk 0:03:03]}  e6 {[%clk 0:02:57]} 8. Rd1 {[%clk 0:03:02]}  Qc7 {[%clk 0:02:57]} 9. Nbd2 {[%clk 0:03:03]}  Be7 {[%clk 0:02:56]} 10. Bc2 {[%clk 0:03:02]}  O-O {[%clk 0:02:54]} 11. Nc4 {[%clk 0:03:02]}  Ne5 {[%clk 0:02:42]} 12. Ncxe5 {[%clk 0:03:01]}  dxe5 {[%clk 0:02:42]} 13. Bg5 {[%clk 0:02:59]}  h6 {[%clk 0:02:40]} 14. Bh4 {[%clk 0:03:00]}  b6 {[%clk 0:02:36]} 15. Bg3 {[%clk 0:03:00]}  Bd6 {[%clk 0:02:14]} 16. Rd2 {[%clk 0:02:52]}  Bb7 {[%clk 0:02:10]} 17. Rad1 {[%clk 0:02:52]}  Rad8 {[%clk 0:01:50]} 18. h3 {[%clk 0:02:40]}  Nh5 {[%clk 0:01:40]} 19. Bh2 {[%clk 0:02:35]}  Nf4 {[%clk 0:01:40]} 20. Bxf4 {[%clk 0:02:34]}  exf4 {[%clk 0:01:40]} 21. Bb3 {[%clk 0:02:28]}  Bc5 {[%clk 0:01:20]} 22. Nd4 {[%clk 0:02:16]}  Bxd4 {[%clk 0:01:03]} 23. Rxd4 {[%clk 0:02:15]}  e5 {[%clk 0:00:56]} 24. R4d2 {[%clk 0:02:07]}  Rxd2 {[%clk 0:00:50]} 25. Rxd2 {[%clk 0:02:07]}  Rd8 {[%clk 0:00:48]} 26. Rxd8+ {[%clk 0:01:58]}  Qxd8 {[%clk 0:00:47]} 27. Qc4 {[%clk 0:01:51]}  Qe7 {[%clk 0:00:47]} 28. f3 {[%clk 0:01:50]}  g5 {[%clk 0:00:42]} 29. Qa4 {[%clk 0:01:42]}  a6 {[%clk 0:00:39]} 30. Qc4 {[%clk 0:01:36]}  Qc5+ {[%clk 0:00:36]} 31. Qxc5 {[%clk 0:01:36]}  bxc5 {[%clk 0:00:36]} 32. Kf1 {[%clk 0:01:37]}  Kf8 {[%clk 0:00:35]} 33. Ke2 {[%clk 0:01:37]}  Ke7 {[%clk 0:00:33]} 34. Kd3 {[%clk 0:01:37]}  f6 {[%clk 0:00:30]} 35. Bg8 {[%clk 0:01:10]}  Kd6 {[%clk 0:00:27]} 36. b4 {[%clk 0:01:09]}  cxb4 {[%clk 0:00:08]} 37. cxb4 {[%clk 0:01:09]}  Bc8 {[%clk 0:00:08]} 38. Kc4 {[%clk 0:01:08]}  Bd7 {[%clk 0:00:08]} 39. Bd5 {[%clk 0:01:02]}  Bb5+ {[%clk 0:00:08]} 40. Kc3 {[%clk 0:01:00]}  Bf1 {[%clk 0:00:08]} 41. Bc4 {[%clk 0:01:00]}  Bxg2 {[%clk 0:00:08]} 42. Bxa6 {[%clk 0:01:00]}  Bxf3 {[%clk 0:00:08]} 43. Bb7 {[%clk 0:01:00]}  h5 {[%clk 0:00:08]} 44. b5 {[%clk 0:01:00]}  g4 {[%clk 0:00:08]} 45. hxg4 {[%clk 0:01:00]}  Bxg4 {[%clk 0:00:08]} 46. a4 {[%clk 0:00:56]}  h4 {[%clk 0:00:07]} 47. a5 {[%clk 0:00:56]}  Kc7 {[%clk 0:00:05]} 48. Bd5 {[%clk 0:00:54]}  Be2 {[%clk 0:00:05]} 49. b6+ {[%clk 0:00:54]}  Kb8 {[%clk 0:00:05]} 50. Bc4 {[%clk 0:00:52]}  Bf3 {[%clk 0:00:03]} 51. Kd3 {[%clk 0:00:49]}  h3 {[%clk 0:00:00]} 52. a6 {[%clk 0:00:49]} 1-0

[Event "December 5 Late 2023"]
[Site "https://www.chess.com"]
[Date "2023.12.05"]
[Round "5"]
[White "Su, Dion"]
[Black "Negron Lizarazo, Juan Sebastian"]
[Result "1-0"]
[Board "137"]
[TimeControl "180+1"]
[WhiteFideId "2029731"]
[BlackFideId "3936910"]
[WhiteElo "2376"]
[BlackElo "2098"]
[WhiteTeam "USA"]
[BlackTeam "COL"]
[WhiteClock "0:01:35"]
[BlackClock "0:01:09"]

1. e4 {[%clk 0:02:58]}  c5 {[%clk 0:02:56]} 2. Nf3 {[%clk 0:02:58]}  d6 {[%clk 0:02:52]} 3. d4 {[%clk 0:02:58]}  cxd4 {[%clk 0:02:53]} 4. Nxd4 {[%clk 0:02:59]}  Nf6 {[%clk 0:02:53]} 5. Nc3 {[%clk 0:02:59]}  a6 {[%clk 0:02:52]} 6. Be3 {[%clk 0:02:59]}  e5 {[%clk 0:02:47]} 7. Nb3 {[%clk 0:02:59]}  Be7 {[%clk 0:02:44]} 8. f3 {[%clk 0:02:56]}  Be6 {[%clk 0:02:43]} 9. Qd2 {[%clk 0:02:54]}  Nc6 {[%clk 0:02:39]} 10. O-O-O {[%clk 0:02:54]}  h5 {[%clk 0:02:37]} 11. Kb1 {[%clk 0:02:53]}  O-O {[%clk 0:02:35]} 12. h3 {[%clk 0:02:51]}  h4 {[%clk 0:02:25]} 13. Nd5 {[%clk 0:02:46]}  Bxd5 {[%clk 0:02:24]} 14. exd5 {[%clk 0:02:47]}  Nb8 {[%clk 0:02:18]} 15. Rg1 {[%clk 0:02:37]}  Nbd7 {[%clk 0:02:13]} 16. g4 {[%clk 0:02:35]}  b5 {[%clk 0:02:06]} 17. f4 {[%clk 0:02:19]}  e4 {[%clk 0:01:44]} 18. Be2 {[%clk 0:02:12]}  Nb6 {[%clk 0:01:44]} 19. Bxb6 {[%clk 0:01:58]}  Qxb6 {[%clk 0:01:41]} 20. g5 {[%clk 0:01:59]}  Nd7 {[%clk 0:01:36]} 21. f5 {[%clk 0:01:51]}  Nc5 {[%clk 0:01:24]} 22. f6 {[%clk 0:01:46]}  Bd8 {[%clk 0:01:23]} 23. fxg7 {[%clk 0:01:41]}  Re8 {[%clk 0:01:22]} 24. g6 {[%clk 0:01:38]}  f5 {[%clk 0:01:09]} 25. Qh6 {[%clk 0:01:35]} 1-0

[Event "December 5 Late 2023"]
[Site "https://www.chess.com"]
[Date "2023.12.05"]
[Round "5"]
[White "Donchenko, Anatoly"]
[Black "Ghosh, Chanchal Kumer"]
[Result "1-0"]
[Board "138"]
[TimeControl "180+1"]
[WhiteFideId "4106091"]
[BlackFideId "10201858"]
[WhiteElo "2374"]
[BlackElo "2094"]
[WhiteTeam "GER"]
[BlackTeam "BAN"]
[WhiteClock "0:01:08"]
[BlackClock "0:00:00"]

1. Nf3 {[%clk 0:03:00]}  d5 {[%clk 0:02:59]} 2. d4 {[%clk 0:02:59]}  e6 {[%clk 0:02:58]} 3. c4 {[%clk 0:02:59]}  Nf6 {[%clk 0:02:52]} 4. g3 {[%clk 0:02:58]}  b6 {[%clk 0:02:49]} 5. Bg2 {[%clk 0:02:57]}  Bb7 {[%clk 0:02:50]} 6. cxd5 {[%clk 0:02:57]}  exd5 {[%clk 0:02:49]} 7. Nc3 {[%clk 0:02:56]}  h6 {[%clk 0:02:47]} 8. O-O {[%clk 0:02:55]}  a6 {[%clk 0:02:44]} 9. Ne5 {[%clk 0:02:52]}  Bd6 {[%clk 0:02:41]} 10. Bf4 {[%clk 0:02:51]}  O-O {[%clk 0:02:40]} 11. Nd3 {[%clk 0:02:51]}  Re8 {[%clk 0:02:38]} 12. Bxd6 {[%clk 0:02:49]}  Qxd6 {[%clk 0:02:38]} 13. e3 {[%clk 0:02:49]}  Nbd7 {[%clk 0:02:37]} 14. Rc1 {[%clk 0:02:48]}  c5 {[%clk 0:02:31]} 15. dxc5 {[%clk 0:02:47]}  bxc5 {[%clk 0:02:30]} 16. Nf4 {[%clk 0:02:47]}  Nb6 {[%clk 0:02:23]} 17. a4 {[%clk 0:02:41]}  Rad8 {[%clk 0:02:16]} 18. a5 {[%clk 0:02:39]}  Nc4 {[%clk 0:02:16]} 19. Ncxd5 {[%clk 0:02:27]}  Nxd5 {[%clk 0:01:38]} 20. Nxd5 {[%clk 0:02:20]}  Nxb2 {[%clk 0:01:29]} 21. Qc2 {[%clk 0:02:11]}  Bxd5 {[%clk 0:01:24]} 22. Bxd5 {[%clk 0:02:04]}  Qxd5 {[%clk 0:01:19]} 23. Qxb2 {[%clk 0:02:04]}  c4 {[%clk 0:01:11]} 24. Qc3 {[%clk 0:02:02]}  Rc8 {[%clk 0:01:08]} 25. Rfd1 {[%clk 0:02:01]}  Qf3 {[%clk 0:01:07]} 26. Rd4 {[%clk 0:02:01]}  Re5 {[%clk 0:00:49]} 27. Rxc4 {[%clk 0:01:58]}  Rxc4 {[%clk 0:00:48]} 28. Qxc4 {[%clk 0:01:58]}  Rxa5 {[%clk 0:00:39]} 29. Qf4 {[%clk 0:01:39]}  Qxf4 {[%clk 0:00:33]} 30. gxf4 {[%clk 0:01:39]}  f5 {[%clk 0:00:31]} 31. Rc7 {[%clk 0:01:33]}  Kh7 {[%clk 0:00:22]} 32. Ra7 {[%clk 0:01:28]}  Kg6 {[%clk 0:00:18]} 33. Kg2 {[%clk 0:01:27]}  Kf6 {[%clk 0:00:18]} 34. h4 {[%clk 0:01:26]}  g5 {[%clk 0:00:16]} 35. fxg5+ {[%clk 0:01:24]}  hxg5 {[%clk 0:00:17]} 36. h5 {[%clk 0:01:24]}  f4 {[%clk 0:00:09]} 37. h6 {[%clk 0:01:21]}  Rc5 {[%clk 0:00:04]} 38. Rxa6+ {[%clk 0:01:16]}  Kf5 {[%clk 0:00:03]} 39. h7 {[%clk 0:01:12]}  Rc8 {[%clk 0:00:03]} 40. Rh6 {[%clk 0:01:12]}  Rh8 {[%clk 0:00:00]} 41. exf4 {[%clk 0:01:08]} 1-0